bitfinex-derivatives/quotes_ETHF0:USTF0_20250416
["timestamp","ask_amount","ask_price","bid_price","bid_amount"]
[1744838840753,13.31918652,1596.6,1596.5,10.30706446]
[1744838842358,14.57181652,1596.6,1596.5,10.30706446]
[1744838842556,13.31918652,1596.6,1596.5,10.30706446]
[1744838843059,25.62189751,1596.6,1596.5,9.05435446]
[1744838844255,24.36926751,1596.6,1596.5,10.30706446]
[1744838844460,13.31918652,1596.6,1596.5,10.30706446]
[1744838844848,21.06886323,1596.6,1596.5,7.09926446]
[1744838845051,21.06886323,1596.6,1596.5,10.30706446]
[1744838845359,21.06886323,1596.6,1596.5,9.05435446]
[1744838845761,21.06886323,1596.6,1596.5,11.29105446]
[1744838845953,14.57181652,1596.6,1596.5,11.29105446]
[1744838846150,25.62189751,1596.6,1596.5,11.29105446]
[1744838846644,25.62189751,1596.6,1596.5,12.54376446]
[1744838846845,24.36926751,1596.6,1596.5,11.29105446]
[1744838847061,24.36926751,1596.6,1596.5,12.54376446]
[1744838847357,1.25245,1596.9,1596.7,1.25249]
[1744838847556,17.43803323,1596.8,1596.7,3.2078]
[1744838847751,17.43803323,1596.8,1596.7,5.563]
[1744838847959,9.68835652,1596.8,1596.7,5.563]
[1744838848459,1.25231,1597.1,1596.8,1.25241]
[1744838848660,16.18556323,1597.0,1596.9,4.4602]
[1744838848858,16.18556323,1597.0,1596.9,45.2602]
[1744838849061,8.43588652,1597.0,1596.9,45.2602]
[1744838849358,8.43588652,1597.0,1596.9,44.0078]
[1744838849851,10.84998652,1597.0,1596.9,47.6154]
[1744838850558,10.84998652,1597.0,1596.9,46.363]
[1744838850857,12.10230652,1597.0,1596.9,46.363]
[1744838851160,10.84998652,1597.0,1596.9,46.363]
[1744838851358,8.43588652,1597.0,1596.9,47.6154]
[1744838853654,10.91278652,1597.0,1596.9,47.6154]
[1744838856363,8.43588652,1597.0,1596.9,47.6154]
[1744838856762,3.57805,1597.1,1597.0,1.25232]
[1744838856966,14.62813099,1597.1,1597.0,3.65292]
[1744838857165,23.06401751,1597.1,1597.0,3.65292]
[1744838857567,21.81176751,1597.1,1597.0,1.25232]
[1744838857866,23.06400751,1597.1,1597.0,3.65292]
[1744838858266,10.76168652,1597.1,1597.0,9.49947446]
[1744838858668,2.4468,1597.2,1597.1,1.25224]
[1744838858871,10.88268652,1597.2,1597.1,6.86064]
[1744838861474,21.93276751,1597.2,1597.1,4.46004]
[1744838862163,10.88268652,1597.2,1597.1,4.46004]
[1744838862460,1.25197,1597.5,1597.1,8.2078]
[1744838862660,17.43756323,1597.4,1597.3,3.2078]
[1744838862859,17.43756323,1597.4,1597.3,4.45981]
[1744838863069,21.86376751,1597.4,1597.3,4.45981]
[1744838863466,2.4473,1597.5,1597.4,1.252]
[1744838863673,10.88318652,1597.5,1597.4,3.6845]
[1744838863967,13.26098652,1597.5,1597.4,3.6845]
[1744838865865,3.2078,1598.2,1597.4,7.4325]
[1744838866072,3.2078,1598.9,1598.0,3.2078]
[1744838866257,7.74967671,1598.7,1598.6,1.25102]
[1744838866461,14.80067323,1598.8,1598.6,1.25102]
[1744838866661,18.10107751,1598.8,1598.6,1.25106]
[1744838866967,14.80067323,1598.7,1598.5,40.80939496]
[1744838867162,2.3277,1598.7,1598.5,42.06051496]
[1744838867368,14.80067323,1598.6,1598.5,40.80939496]
[1744838867667,14.80067323,1598.6,1598.5,0.00939496]
[1744838867964,29.08493751,1598.6,1598.5,0.00939496]
[1744838868158,27.83387751,1598.6,1598.5,0.00939496]
[1744838868469,27.83387751,1598.6,1598.1,2.3043]
[1744838868470,14.80067323,1598.5,1598.1,3.2078]
[1744838868768,14.80067323,1598.5,1597.9,3.2078]
[1744838868769,7.74967671,1598.2,1597.9,3.2078]
[1744838868971,7.74967671,1598.0,1597.9,3.2078]
[1744838869376,14.80067323,1598.0,1597.9,3.2078]
[1744838869566,17.07267323,1598.0,1597.9,44.0078]
[1744838870476,1.25131,1598.3,1598.0,1.25151]
[1744838870771,7.74967671,1598.1,1598.0,6.90781]
[1744838871169,7.05099652,1598.1,1598.0,6.90781]
[1744838871471,9.32299652,1598.1,1598.0,6.90781]
[1744838871673,2.4223,1598.2,1598.1,1.25146]
[1744838871869,2.4223,1598.2,1598.1,3.69996]
[1744838872173,9.47329652,1598.2,1598.1,3.69996]
[1744838872373,11.77519652,1598.2,1598.1,3.69996]
[1744838872675,19.52487323,1598.2,1598.0,4.45928]
[1744838872876,17.10257323,1598.1,1598.0,4.45928]
[1744838873273,17.10257323,1598.1,1598.0,3.2078]
[1744838873475,9.35289652,1598.1,1598.0,5.6782]
[1744838874572,10.60435652,1598.1,1598.0,5.6782]
[1744838876479,10.60435652,1598.1,1598.0,2.6782]
[1744838877683,10.60435652,1598.1,1598.0,2.4704]
[1744838877874,9.35289652,1598.1,1598.0,6.92973]
[1744838878678,10.60435652,1598.1,1598.0,5.6782]
[1744838878977,10.60435652,1598.1,1597.8,3.21719496]
[1744838878978,26.92957323,1598.1,1597.8,3.21719496]
[1744838879178,1.25205,1597.4,1597.3,3.2078]
[1744838879381,11.57749652,1598.0,1597.1,5.84655446]
[1744838879382,1.25216,1597.2,1597.1,5.84655446]
[1744838879576,9.00183671,1597.2,1597.1,40.8]
[1744838879887,1.25232,1597.0,1596.9,8.15863854]
[1744838880089,13.82899671,1597.0,1596.9,8.13025301]
[1744838880386,25.87999323,1597.0,1596.9,0.68985301]
[1744838880575,8.30339652,1596.9,1596.7,16.31727709]
[1744838880780,3.52127,1596.8,1596.7,9.82567114]
[1744838880980,10.57226652,1596.8,1596.7,6.91932114]
[1744838881182,1.25263,1596.6,1596.5,20.39659637]
[1744838881377,9.28743,1596.6,1596.5,15.20119637]
[1744838881578,21.33842652,1596.6,1596.5,4.43598637]
[1744838881783,21.33842652,1596.6,1596.5,2.94927637]
[1744838882086,21.33842652,1596.6,1596.5,6.37e-06]
[1744838882587,1.25271,1596.5,1596.4,0.00939496]
[1744838882789,8.30370652,1596.5,1596.4,0.00939496]
[1744838882981,13.30370652,1596.5,1596.4,0.00939496]
[1744838883583,13.30370652,1596.5,1596.4,4.96e-06]
[1744838885191,13.68280652,1596.5,1596.4,4.96e-06]
[1744838886880,6.63181,1596.5,1596.4,4.96e-06]
[1744838887102,13.68280652,1596.5,1596.4,4.96e-06]
[1744838887391,1.25342,1595.6,1595.5,2.2812]
[1744838887783,8.30441652,1595.6,1595.5,2.2812]
[1744838888493,8.30441652,1595.6,1595.0,7.8456]
[1744838888494,1.2535,1595.5,1595.4,0.00939496]
[1744838888687,8.68359652,1595.5,1595.4,4.96e-06]
[1744838888891,3.13445,1595.2,1594.7,2.2812]
[1744838889093,8.34367,1595.1,1594.6,5.84655446]
[1744838889294,3.2078,1595.0,1594.7,40.8]
[1744838889595,1.25405,1594.8,1594.7,40.8]
[1744838890094,1.25428,1594.5,1594.4,5.84655446]
[1744838890294,1.25428,1594.5,1594.2,2.4289]
[1744838890295,1.25436,1594.4,1594.3,5.85594942]
[1744838890796,11.51315652,1594.4,1594.3,0.00939496]
[1744838891295,16.89315652,1594.4,1594.3,4.96e-06]
[1744838891992,3.1367,1594.0,1593.4,5.84655446]
[1744838892183,4.91,1594.1,1593.5,9.04513759]
[1744838892388,1.25485,1593.8,1593.5,9.04513759]
[1744838892694,1.25489,1593.8,1593.5,9.04513759]
[1744838892888,7.05099652,1593.7,1593.5,9.05140092]
[1744838893197,7.05099652,1593.7,1593.5,0.00626333]
[1744838893492,8.30591652,1593.7,1593.5,5.00626333]
[1744838893794,7.05099652,1593.6,1593.5,0.00626333]
[1744838893993,8.30591652,1593.7,1593.5,0.00626333]
[1744838894187,7.05099652,1593.6,1593.5,0.00626333]
[1744838894594,7.05099652,1593.6,1593.5,5.00626333]
[1744838895695,8.30598652,1593.6,1593.5,5.00626333]
[1744838896089,8.30598652,1593.6,1593.5,45.80626333]
[1744838896284,8.30598652,1593.6,1593.5,40.80626333]
[1744838896690,8.30598652,1593.6,1593.5,0.00626333]
[1744838898200,13.30598652,1593.6,1593.5,0.00626333]
[1744838898393,8.69378652,1593.6,1593.5,0.00626333]
[1744838899600,11.96599652,1593.6,1593.5,0.00626333]
[1744838902501,13.22098652,1593.6,1593.5,0.00626333]
[1744838904402,11.96599652,1593.6,1593.5,0.00626333]
[1744838904598,13.22098652,1593.6,1593.5,0.00626333]
[1744838904793,11.96599652,1593.6,1593.5,0.00626333]
[1744838905101,13.22098652,1593.6,1593.5,0.00626333]
[1744838905295,13.22098652,1593.6,1593.5,2.37296333]
[1744838907996,13.60888652,1593.6,1593.5,2.37296333]
[1744838908397,13.22098652,1593.6,1593.5,2.37296333]
[1744838908598,13.22398652,1593.6,1593.5,2.37296333]
[1744838909703,7.05099652,1593.6,1593.5,7.37296333]
[1744838910096,8.1258,1593.7,1593.5,7.37296333]
[1744838910301,8.1258,1593.7,1593.5,3.62803333]
[1744838910706,91.87439496,1593.8,1593.5,7.37296333]
[1744838911007,91.87439496,1593.8,1593.6,1.25495]
[1744838911208,93.12923496,1593.8,1593.5,1.26127333]
[1744838911405,93.12923496,1593.8,1593.6,1.25498]
[1744838911704,91.87439496,1593.8,1593.6,1.25496]
[1744838911898,6.18223496,1593.8,1593.6,1.25496]
[1744838912302,6.18223496,1593.8,1593.5,4.46908333]
[1744838912502,6.18223496,1593.8,1593.6,1.25498]
[1744838912910,6.18223496,1593.8,1593.5,3.21406333]
[1744838912911,4.92739496,1593.8,1593.5,4.46907333]
[1744838913213,6.18228496,1593.8,1593.5,4.46907333]
[1744838913401,6.18228496,1593.8,1593.6,2.4038]
[1744838913709,6.18228496,1593.8,1593.6,8.24113759]
[1744838914115,1.25491,1593.7,1593.6,8.24113759]
[1744838914299,1.3807574,1593.8,1593.6,5.83733759]
[1744838914700,2.6356374,1593.8,1593.6,7.09230759]
[1744838914903,2.6356374,1593.8,1593.6,5.83733759]
[1744838915313,2.6356374,1593.8,1593.6,7.09230759]
[1744838916600,1.25488,1593.8,1593.6,7.09230759]
[1744838916803,1.25485,1593.8,1593.6,7.09230759]
[1744838917205,6.18220496,1593.9,1593.6,7.09230759]
[1744838917615,1.26420496,1593.9,1593.6,7.09230759]
[1744838917807,6.18220496,1593.9,1593.6,7.09230759]
[1744838918811,6.18220496,1593.9,1593.6,5.83733759]
[1744838919215,6.18220496,1593.9,1593.6,7.09229759]
[1744838919417,1.26420496,1593.9,1593.6,7.09229759]
[1744838919618,6.10120496,1593.9,1593.6,7.09229759]
[1744838919916,1.26420496,1593.9,1593.6,7.09229759]
[1744838920118,6.10120496,1593.9,1593.6,7.09229759]
[1744838920615,6.10120496,1593.9,1593.6,5.83733759]
[1744838920915,6.10120496,1593.9,1593.6,7.09228759]
[1744838921117,1.25484,1593.8,1593.6,7.09227759]
[1744838922317,4.84639496,1593.9,1593.7,1.25489]
[1744838922614,6.10116496,1593.9,1593.6,7.09225759]
[1744838922914,4.84639496,1593.9,1593.6,7.09225759]
[1744838923106,1.25485,1593.8,1593.6,7.09225759]
[1744838924118,1.25491,1593.7,1593.6,5.83733759]
[1744838924317,1.25489,1593.8,1593.6,7.09232759]
[1744838925714,4.84639496,1593.9,1593.5,0.00626333]
[1744838925921,1.25499,1593.6,1593.5,0.00626333]
[1744838930716,6.09199,1593.6,1593.5,0.00626333]
[1744838930914,7.91479,1593.6,1593.5,0.00626333]
[1744838933020,1.25515,1593.4,1593.3,2.581]
[1744838933414,1.25541,1593.1,1592.9,6.62112]
[1744838934622,1.25541,1593.1,1593.0,2.581]
[1744838935821,1.25554,1592.9,1592.8,0.00939496]
[1744838936012,1.25594,1592.4,1592.3,21.13506588]
[1744838936213,1.25594,1592.4,1592.3,15.87766588]
[1744838936815,4.46374,1592.4,1592.3,15.87766588]
[1744838937915,9.46374,1592.4,1592.3,15.87766588]
[1744838938122,11.28604,1592.4,1592.3,14.43370588]
[1744838938315,5.0301,1592.4,1592.3,14.43370588]
[1744838938515,9.30174,1592.4,1592.3,17.11830588]
[1744838939320,3.2078,1592.6,1592.3,18.37429588]
[1744838939517,1.25589,1592.5,1592.4,2.8402]
[1744838940723,9.30164,1592.6,1592.4,2.8402]
[1744838940926,1.25586,1592.5,1592.4,2.8402]
[1744838941421,3.2078,1592.6,1592.4,2.8402]
[1744838941631,3.2078,1592.6,1592.4,4.09609]
[1744838941930,4.46342,1592.8,1592.5,6.6208]
[1744838942119,4.46342,1592.8,1592.6,2.5878]
[1744838944230,4.46348,1592.8,1592.6,2.5878]
[1744838945125,1.25581,1592.6,1592.3,1.25598]
[1744838945320,1.25581,1592.6,1592.3,3.98648]
[1744838945522,1.25586,1592.5,1592.3,2.7305]
[1744838945722,5.0325,1592.8,1592.4,2.7305]
[1744838945926,8.17157,1592.8,1592.4,2.7305]
[1744838946527,3.2078,1592.6,1592.0,5.83733759]
[1744838946826,3.2078,1592.3,1592.0,5.83733759]
[1744838947031,1.25609,1592.2,1592.0,46.63733759]
[1744838947230,1.25617,1592.1,1592.0,46.63733759]
[1744838947529,1.25616,1592.2,1592.0,46.63733759]
[1744838947731,6.09616,1592.2,1592.0,46.63733759]
[1744838948034,6.09616,1592.2,1592.1,2.7228]
[1744838948929,7.92346,1592.2,1592.1,2.7228]
[1744838949126,1.25633,1591.9,1591.8,43.6023]
[1744838949328,1.26570496,1592.0,1591.8,43.6023]
[1744838949526,1.26570496,1592.0,1591.9,2.7228]
[1744838950032,1.26570496,1592.0,1591.1,12.32733976]
[1744838950033,6.83669496,1592.0,1591.1,12.32733976]
[1744838950332,1.25669,1591.5,1591.3,2.7228]
[1744838950534,6.0937,1591.5,1591.3,2.7228]
[1744838951520,4.837,1591.5,1591.3,2.7228]
[1744838951722,1.25672,1591.4,1591.3,2.7228]
[1744838951925,3.2078,1591.7,1591.4,1.2567]
[1744838952131,1.25664,1591.6,1591.5,2.6653]
[1744838952430,6.09435,1591.9,1591.6,1.25654]
[1744838952633,4.838,1591.9,1591.7,2.6653]
[1744838952823,1.25641,1591.8,1591.7,2.6653]
[1744838953130,1.25641,1591.8,1591.4,6.78207]
[1744838953323,1.25641,1591.8,1591.5,2.6653]
[1744838953525,8.0458,1591.9,1591.5,3.9219]
[1744838953822,1.25643,1591.8,1591.5,3.9219]
[1744838954021,8.0458,1591.9,1591.5,3.92189]
[1744838954232,1.25641,1591.8,1591.5,3.92189]
[1744838954731,8.0458,1591.9,1591.5,2.6653]
[1744838954939,1.25657,1591.6,1591.5,2.6653]
[1744838955124,6.09457,1591.6,1591.5,2.6653]
[1744838957132,6.09436,1591.9,1591.7,1.25649]
[1744838957328,0.00939496,1592.0,1591.9,1.25633]
[1744838957524,0.00939496,1592.0,1591.8,2.7956]
[1744838957725,0.00939496,1592.0,1591.9,4.09393]
[1744838958030,0.00939496,1592.0,1591.9,6.70003]
[1744838958330,0.00939496,1592.0,1591.9,9.49563]
[1744838961232,0.00939496,1592.0,1591.9,17.70343]
[1744838962540,0.00939496,1592.0,1591.9,12.70343]
[1744838963432,1.26564496,1592.0,1591.9,12.70343]
[1744838963637,1.26564496,1592.0,1591.9,2.7956]
[1744838964940,0.00939496,1592.0,1591.9,4.05193]
[1744838965934,1.26564496,1592.0,1591.9,4.05193]
[1744838966132,0.00939496,1592.0,1591.9,4.05193]
[1744838966332,0.00939496,1592.0,1591.9,2.7956]
[1744838966941,0.00939496,1592.0,1591.9,4.05193]
[1744838967142,6.26564496,1592.0,1591.9,2.7956]
[1744838967536,0.00939496,1592.0,1591.9,2.7956]
[1744838967734,1.26564496,1592.0,1591.9,2.7956]
[1744838968436,0.00939496,1592.0,1591.9,2.7956]
[1744838968744,1.85229496,1592.0,1591.9,2.7956]
[1744838969343,11.31640496,1592.0,1591.7,1.25645]
[1744838969645,4.838,1591.9,1591.8,1.25641]
[1744838969940,6.6812,1591.9,1591.8,1.25641]
[1744838970341,6.6812,1591.9,1591.7,3.96062]
[1744838970742,6.6812,1591.9,1591.8,1.25641]
[1744838970938,6.6812,1591.9,1591.7,3.96062]
[1744838972242,7.93754,1591.9,1591.7,2.7042]
[1744838973244,1.25641,1591.8,1591.7,2.7042]
[1744838973541,7.93759,1591.9,1591.7,2.7042]
[1744838973746,7.93758,1591.9,1591.7,2.7042]
[1744838974240,1.25641,1591.8,1591.7,2.7042]
[1744838975033,7.9376,1591.9,1591.7,2.7042]
[1744838975233,1.25641,1591.8,1591.7,2.7042]
[1744838975429,7.9376,1591.9,1591.7,2.7042]
[1744838975741,1.25641,1591.8,1591.7,2.7042]
[1744838978136,3.10031,1591.8,1591.7,2.7042]
[1744838978340,1.25657,1591.6,1591.5,5.83733759]
[1744838978540,1.25657,1591.6,1591.5,8.45723759]
[1744838978741,1.25655,1591.7,1591.5,8.45723759]
[1744838979045,6.09557,1591.6,1591.5,8.45723759]
[1744838980447,6.09557,1591.6,1591.5,2.6199]
[1744838981847,4.839,1591.6,1591.5,2.6199]
[1744838982048,6.09557,1591.6,1591.5,2.6199]
[1744838989052,4.839,1591.6,1591.5,2.6199]
[1744838989350,6.09557,1591.6,1591.5,2.6199]
[1744838989847,4.839,1591.6,1591.5,2.6199]
[1744838990151,6.09557,1591.6,1591.5,2.6199]
[1744838994853,21.15249,1591.6,1590.6,3.2078]
[1744838995047,3.2078,1591.2,1590.8,2.6275]
[1744838995247,1.25712,1590.9,1590.8,2.6275]
[1744838996353,1.25736,1590.6,1590.5,12.32733976]
[1744838996552,6.09636,1590.6,1590.5,12.32733976]
[1744838996946,1.25746,1590.5,1590.3,43.5455]
[1744838997352,1.25746,1590.5,1590.3,2.7455]
[1744838997751,1.25746,1590.5,1590.4,2.5833]
[1744839000757,4.841,1590.5,1590.4,2.5833]
[1744839001056,6.09844,1590.5,1590.4,2.5833]
[1744839001757,5.9179,1591.1,1590.4,7.5833]
[1744839002057,0.00942477,1591.2,1591.1,1.25696]
[1744839002452,0.00942477,1591.2,1591.1,6.25696]
[1744839003259,6.09758,1591.6,1591.3,1.25673]
[1744839003558,1.25658,1591.6,1591.4,2.3277]
[1744839003763,4.841,1591.7,1591.4,2.3277]
[1744839003764,1.25665,1591.5,1591.4,46.3355]
[1744839003959,1.25665,1591.5,1591.4,43.1277]
[1744839004161,1.25665,1591.5,1591.4,2.3277]
[1744839004361,0.00942477,1591.6,1591.4,2.3277]
[1744839004561,1.26603477,1591.6,1591.4,2.3277]
[1744839005150,1.26603477,1591.6,1591.4,3.58442]
[1744839005360,1.26603477,1591.6,1591.4,2.3277]
[1744839005562,1.26603477,1591.6,1591.4,43.1277]
[1744839005563,0.00942477,1591.6,1591.4,43.1277]
[1744839005764,0.00942477,1591.6,1591.4,44.3844]
[1744839006356,1.26599477,1591.6,1591.4,5.9939]
[1744839006562,1.26599477,1591.6,1591.4,2.7861]
[1744839006762,1.26599477,1591.6,1591.5,2.6369]
[1744839007160,0.00942477,1591.6,1591.5,2.6369]
[1744839007853,1.26599477,1591.6,1591.5,2.6369]
[1744839008456,4.04849477,1591.6,1591.5,2.6369]
[1744839011068,1.26599477,1591.6,1591.5,2.6369]
[1744839011269,0.00942477,1591.6,1591.5,2.6369]
[1744839011957,0.00942477,1591.6,1591.5,3.89355]
[1744839015270,1.26599477,1591.6,1591.5,2.6369]
[1744839015570,1.26599477,1591.6,1591.5,3.89355]
[1744839015771,1.26599477,1591.6,1591.5,2.6369]
[1744839016073,0.00942477,1591.6,1591.5,3.89355]
[1744839016272,1.26599477,1591.6,1591.5,2.6369]
[1744839016957,1.26599477,1591.6,1591.5,3.89355]
[1744839016958,0.00942477,1591.6,1591.5,3.89355]
[1744839018776,1.26599477,1591.6,1591.5,2.6369]
[1744839019272,0.00942477,1591.6,1591.5,3.89355]
[1744839019769,1.26599477,1591.6,1591.5,3.89355]
[1744839021174,1.26599477,1591.6,1591.5,2.6369]
[1744839021372,1.26599477,1591.6,1591.5,3.89355]
[1744839022671,0.00942477,1591.6,1591.5,3.89355]
[1744839025777,0.00942477,1591.6,1591.5,7.10135]
[1744839029180,0.00942477,1591.6,1591.5,3.89355]
[1744839029880,0.00942477,1591.6,1591.5,7.10135]
[1744839030081,0.00942477,1591.6,1591.5,10.09835]
[1744839030682,5.8444,1592.2,1591.8,3.14103]
[1744839030876,2.6366,1592.2,1592.1,1.25617]
[1744839031376,9.10491,1592.3,1592.2,1.25609]
[1744839031683,7.8489,1592.3,1592.2,1.25609]
[1744839032074,7.8489,1592.3,1592.2,4.21679]
[1744839032378,4.837,1592.3,1592.2,4.21679]
[1744839033982,0.00942477,1592.4,1592.3,1.25601]
[1744839034285,0.00942477,1592.4,1592.3,7.32681]
[1744839034780,2.7509,1592.8,1592.4,3.13984]
[1744839034979,6.0926,1592.9,1592.5,11.78603759]
[1744839035174,7.5879,1592.9,1592.8,1.25562]
[1744839035575,4.837,1592.9,1592.8,1.25562]
[1744839035981,0.00942477,1593.0,1592.8,7.09295759]
[1744839036273,0.00942477,1593.0,1592.9,2.7409]
[1744839037083,0.00942477,1593.0,1592.9,3.99644]
[1744839037984,0.00942477,1593.0,1592.9,7.20424]
[1744839038185,0.00942477,1593.0,1592.9,10.12414]
[1744839038382,6.85214,1593.3,1593.1,1.25533]
[1744839038383,6.85215,1593.3,1593.1,1.25533]
[1744839038684,6.84293313,1593.3,1593.1,1.25537]
[1744839038884,6.84293313,1593.3,1593.2,3.0]
[1744839039082,13.72577313,1593.3,1592.8,5.83733759]
[1744839039273,6.34617,1593.2,1592.8,5.83733759]
[1744839039479,7.7976,1593.1,1592.8,5.84676236]
[1744839039683,1.25554,1592.9,1592.8,5.84676236]
[1744839040387,1.25553,1593.0,1592.8,7.10238236]
[1744839040579,4.21813,1593.0,1592.8,7.10238236]
[1744839040781,2.9626,1593.0,1592.9,1.25554]
[1744839042083,2.9626,1593.0,1592.8,7.10236236]
[1744839042289,1.25554,1592.9,1592.8,5.84676236]
[1744839043084,1.25554,1592.9,1592.8,7.10235236]
[1744839043592,1.25554,1592.9,1592.8,10.07545236]
[1744839044492,0.00942477,1593.2,1592.8,8.81986236]
[1744839044790,1.25546,1593.0,1592.9,2.9731]
[1744839045290,1.25546,1593.0,1592.9,4.22864]
[1744839045490,1.25546,1593.0,1592.9,2.9731]
[1744839045793,1.25546,1593.0,1592.9,4.22864]
[1744839049096,4.08571,1593.1,1593.0,1.25546]
[1744839049302,0.00942477,1593.2,1593.1,1.25538]
[1744839049500,0.00942477,1593.2,1593.1,7.09271759]
[1744839049701,0.00942477,1593.2,1593.1,9.90311759]
[1744839049903,0.00942477,1593.2,1593.1,12.84071759]
[1744839050395,3.2078,1593.6,1593.1,19.79313759]
[1744839050603,3.19858313,1593.6,1593.5,1.25507]
[1744839050999,1.25488,1593.8,1593.6,1.25497]
[1744839051208,11.17469,1594.0,1593.7,4.19246]
[1744839051209,1.25476,1593.9,1593.7,4.19246]
[1744839051395,1.25476,1593.9,1593.8,2.9376]
[1744839051592,4.47194477,1594.0,1593.8,4.19243]
[1744839051899,4.47190477,1594.0,1593.8,50.82976759]
[1744839052204,0.00942477,1594.0,1593.9,8.65553759]
[1744839052502,0.00942477,1594.0,1593.9,9.91028759]
[1744839054307,0.00942477,1594.0,1593.9,12.87418759]
[1744839058212,1.26410477,1594.0,1593.9,11.61943759]
[1744839058412,0.00942477,1594.0,1593.9,12.87418759]
[1744839060417,1.26410477,1594.0,1593.9,12.87418759]
[1744839060712,1.26410477,1594.0,1593.9,11.61943759]
[1744839060918,1.26410477,1594.0,1593.9,8.65553759]
[1744839061511,1.26410477,1594.0,1593.9,5.83733759]
[1744839061712,4.18120477,1594.0,1593.9,5.83733759]
[1744839063819,7.11850477,1594.0,1593.9,5.83733759]
[1744839070125,1.26410477,1594.0,1593.9,5.83733759]
[1744839070624,4.24840477,1594.0,1593.9,5.83733759]
[1744839073429,1.25483,1593.8,1593.7,5.83733759]
[1744839073626,9.28563,1593.8,1593.7,5.79042164]
[1744839073831,14.28563,1593.8,1593.7,5.79042164]
[1744839074131,1.25491,1593.7,1593.6,0.00942477]
[1744839074430,7.04801,1593.7,1593.6,4.77e-06]
[1744839074630,1.25523,1593.3,1593.2,5.79042164]
[1744839074831,1.25531,1593.2,1593.1,2.9577]
[1744839075533,4.07741,1593.2,1593.1,2.9577]
[1744839077333,1.25538,1593.1,1593.0,5.79984641]
[1744839077634,4.24828,1593.1,1593.0,0.00942477]
[1744839079135,7.45608,1593.1,1593.0,0.00942477]
[1744839080438,12.45608,1593.1,1593.0,0.00942477]
[1744839082941,7.45608,1593.1,1593.0,0.00942477]
[1744839083441,4.24828,1593.1,1593.0,0.00942477]
[1744839083642,7.45608,1593.1,1593.0,0.00942477]
[1744839084438,3.2078,1593.1,1593.0,0.00942477]
[1744839084743,10.9916,1593.5,1593.0,5.00942477]
[1744839085044,1.25531,1593.2,1593.1,2.9797]
[1744839093743,6.08031,1593.2,1593.1,2.9797]
[1744839093942,1.25538,1593.1,1593.0,0.00942477]
[1744839094141,7.47398,1593.1,1593.0,0.00942477]
[1744839094539,12.47398,1593.1,1593.0,0.00942477]
[1744839096153,9.26618,1593.1,1593.0,0.00942477]
[1744839097556,12.47398,1593.1,1593.0,0.00942477]
[1744839102543,4.26618,1593.1,1593.0,0.00942477]
[1744839103152,1.25538,1593.1,1593.0,0.00942477]
[1744839112964,6.07438,1593.1,1593.0,0.00942477]
[1744839123972,13.97928,1593.1,1593.0,0.00942477]
[1744839124179,16.76728,1593.1,1593.0,0.00942477]
[1744839124979,11.76728,1593.1,1593.0,0.00942477]
[1744839126183,16.76728,1593.1,1593.0,4.77e-06]
[1744839126582,11.76728,1593.1,1593.0,4.77e-06]
[1744839127981,16.76728,1593.1,1593.0,4.77e-06]
[1744839128184,18.54508,1593.1,1593.0,4.77e-06]
[1744839129785,13.54508,1593.1,1593.0,4.77e-06]
[1744839133487,18.54508,1593.1,1593.0,4.77e-06]
[1744839133882,18.66048872,1593.1,1593.0,4.77e-06]
[1744839134086,1.25594,1592.4,1592.3,8.79652164]
[1744839134286,6.07594,1592.4,1592.3,3.0061]
[1744839135789,1.25601,1592.3,1592.2,2.82962477]
[1744839136383,4.07041,1592.3,1592.2,2.82962477]
[1744839137684,4.07041,1592.3,1592.2,0.00942477]
[1744839138283,9.07041,1592.3,1592.2,4.77e-06]
[1744839138783,10.84851,1592.3,1592.2,4.77e-06]
[1744839139098,1.25641,1591.8,1591.7,5.79042164]
[1744839139391,1.25657,1591.6,1591.5,2.887]
[1744839139783,1.25657,1591.6,1591.5,7.887]
[1744839140382,1.25657,1591.6,1591.5,13.7343]
[1744839141096,4.813,1591.8,1591.5,13.7343]
[1744839141285,1.25649,1591.7,1591.6,2.8624]
[1744839141792,6.06945,1591.8,1591.6,2.8624]
[1744839142084,1.25649,1591.7,1591.6,2.8624]
[1744839145790,6.06947,1591.8,1591.6,2.8624]
[1744839145991,1.25649,1591.7,1591.6,2.8624]
[1744839150304,4.17759,1591.7,1591.6,2.8624]
[1744839151102,9.17759,1591.7,1591.6,2.8624]
[1744839151404,1.25665,1591.5,1591.4,4.77e-06]
[1744839151699,9.27945,1591.5,1591.4,4.77e-06]
[1744839152000,14.39497767,1591.5,1591.4,4.77e-06]
[1744839152199,16.23037767,1591.5,1591.4,4.77e-06]
[1744839152805,16.11485,1591.5,1591.4,4.77e-06]
[1744839153198,16.23037728,1591.5,1591.4,4.77e-06]
[1744839153899,22.22037728,1591.5,1591.4,4.77e-06]
[1744839154405,3.14251,1591.1,1590.7,5.79042164]
[1744839154705,1.2572,1590.8,1590.7,2.8948]
[1744839155099,4.57794445,1590.8,1590.7,2.8948]
[1744839155308,1.25728,1590.7,1590.6,0.00942477]
[1744839155507,9.02388,1590.7,1590.6,0.00942477]
[1744839155808,17.23168,1590.7,1590.6,4.77e-06]
[1744839156103,7.41568,1590.7,1590.6,4.77e-06]
[1744839156299,6.07428,1590.7,1590.6,4.77e-06]
[1744839157507,9.28208,1590.7,1590.6,4.77e-06]
[1744839157702,6.07428,1590.7,1590.6,4.77e-06]
[1744839158401,9.28208,1590.7,1590.6,4.77e-06]
[1744839158605,12.17548,1590.7,1590.6,4.77e-06]
[1744839159103,18.16548,1590.7,1590.6,4.77e-06]
[1744839160306,19.99938,1590.7,1590.6,4.77e-06]
[1744839161200,20.11496976,1590.7,1590.6,4.77e-06]
[1744839161407,20.11496928,1590.7,1590.6,4.77e-06]
[1744839161600,25.11496928,1590.7,1590.6,4.77e-06]
[1744839163209,20.11496928,1590.7,1590.6,4.77e-06]
[1744839164099,14.59879845,1590.7,1590.6,4.77e-06]
[1744839164410,12.64930917,1590.7,1590.6,4.77e-06]
[1744839165302,12.17548,1590.7,1590.6,4.77e-06]
[1744839166311,12.16848,1590.7,1590.6,4.77e-06]
[1744839167114,12.16848,1590.7,1590.6,2.97550477]
[1744839167709,4.46508,1590.7,1590.6,2.97550477]
[1744839168011,6.06728,1590.7,1590.6,2.97550477]
[1744839169807,6.06728,1590.7,1590.6,7.97550477]